fUSD/lending_fUSD_20240227
["ID","MTS","AMOUNT","RATE_DAILY","PERIOD"]
[315465356,1709055042611,-640.79833317,0.00023,2]
[315465365,1709055042653,-509178.33269373,0.00023,2]
[315465368,1709055042668,-288777.27849491,0.00023,2]
[315465372,1709055042679,-1227.33,0.00023,2]
[315465379,1709055042712,-694.5375725,0.00023,2]
[315465395,1709055042827,-627.46528697,0.00023,2]
[315465401,1709055042882,-13040.6402259,0.00023,2]
[315465402,1709055042894,-5712.5022,0.00023,2]
[315465447,1709055045552,-269.52294041,0.00022899,2]
[315465448,1709055045562,-248.62733795,0.00023,2]
[315465449,1709055045832,-1810.94683196,0.00023,2]
[315465457,1709055051693,93618.91624412,0.000212,2]
[315465458,1709055151039,2417.26416969,0.0002,3]
[315465459,1709055227588,414862.17659192,0.0002,2]
[315465460,1709055305638,62998.73650172,0.0002,2]
[315465461,1709055403865,151.0,0.00029589,120]
[315465462,1709055630291,588.48,0.00019524,2]
[315465463,1709055966801,599.44104659,0.0003,120]
[315465465,1709056186029,559.05,0.0001933,2]
[315465471,1709056231723,-207.0,0.00020507,2]
[315465472,1709056231733,-198.64544914,0.0002114,2]
[315465473,1709056231841,-296.9414,0.0002114,2]
[315465474,1709056233941,-159.8886432,0.0002114,2]
[315465475,1709056233950,-419.06590968,0.00021141,2]
[315465476,1709056233960,-150.0,0.00021178,2]
[315465477,1709056233969,-300.0,0.00021178,2]
[315465478,1709056233978,-2705.0,0.00021179,2]
[315465479,1709056233988,-1627.9194881,0.00021179,2]
[315465480,1709056234031,-372.0805119,0.00021179,2]
[315465481,1709056234042,-712.0,0.00021205,2]
[315465482,1709056234051,-402.02,0.00021213,2]
[315465483,1709056234061,-155.42920951,0.00021235,2]
[315465484,1709056234070,-188.82,0.00021251,2]
[315465485,1709056234080,-500.0,0.0002126,2]
[315465486,1709056234091,-500.0,0.0002126,2]
[315465487,1709056234100,-500.0,0.0002126,2]
[315465488,1709056234109,-319.04,0.0002129,2]
[315465489,1709056234118,-250.0,0.00021335,2]
[315465490,1709056234127,-150.99,0.00021335,2]
[315465491,1709056234137,-250.0,0.00021414,2]
[315465492,1709056234146,-155.42920943,0.0002142,2]
[315465493,1709056234155,-4611.42,0.0002142,2]
[315465494,1709056234165,-288.0,0.0002147,2]
[315465495,1709056234174,-172.69,0.00021558,2]
[315465496,1709056234184,-559.05,0.00021594,2]
[315465497,1709056234193,-155.42920943,0.00021605,2]
[315465498,1709056234202,-171.19,0.00021634,2]
[315465499,1709056234212,-499.99,0.0002174,2]
[315465500,1709056234221,-155.42920943,0.0002179,2]
[315465501,1709056234230,-8000.0,0.000219,2]
[315465502,1709056234240,-158.85,0.00021918,2]
[315465503,1709056234248,-157.03,0.00021918,2]
[315465504,1709056234257,-155.42920943,0.00021975,2]
[315465505,1709056234266,-1750.0,0.00022,3]
[315465506,1709056234276,-177.9,0.00022,2]
[315465507,1709056234284,-315.07702923,0.00022104,3]
[315465508,1709056234293,-157.53851462,0.00022104,3]
[315465509,1709056234302,-157.53851461,0.00022104,3]
[315465510,1709056234311,-160.1353265,0.00022104,3]
[315465511,1709056234320,-205.90801715,0.00022104,3]
[315465512,1709056234329,-330.89695841,0.00022104,3]
[315465513,1709056234338,-1000.0,0.00022104,3]
[315465514,1709056234348,-155.42920943,0.0002216,2]
[315465515,1709056234357,-3198.93543951,0.00022199,2]
[315465516,1709056234366,-2550.0,0.000222,2]
[315465517,1709056234375,-4126.66643543,0.000222,2]
[315465518,1709056234388,-1501.33356457,0.000222,2]
[315465519,1709056234397,-157.03,0.00022283,2]
[315465520,1709056234406,-1429.91129506,0.00022317,2]
[315465618,1709056236766,2665.32709917,0.0002,3]
[315465619,1709056236957,2665.32709917,0.0002,3]
[315465620,1709056237175,2665.32709917,0.0002,3]
[315465621,1709056237374,2665.32709917,0.0002,3]
[315465627,1709056237548,2665.32709917,0.0002,3]
[315465629,1709056237672,-4135.08870494,0.00022317,2]
[315465630,1709056237684,-155.42920943,0.00022345,2]
[315465631,1709056237694,-540.19601199,0.00022356,2]
[315465632,1709056237705,-314.18607364,0.00022356,2]
[315465633,1709056237719,-185.81392636,0.00022356,2]
[315465634,1709056237729,-574.64844781,0.00022356,2]
[315465635,1709056237739,-158.85,0.00022466,2]
[315465636,1709056237752,-155.42920943,0.0002253,2]
[315465637,1709056237762,-427.62678774,0.00022532,2]
[315465638,1709056237776,-460.89446664,0.00022532,2]
[315465639,1709056237789,-254.99999,0.00022532,2]
[315465640,1709056237802,-4808.04262874,0.00022532,2]
[315465641,1709056237812,-354.92,0.00022548,2]
[315465642,1709056237826,-19827.93267906,0.00022589,2]
[315465643,1709056237841,-552.64614936,0.00022589,2]
[315465644,1709056237872,2665.32709917,0.0002,3]
[315465645,1709056237895,-9825.56177158,0.00022589,2]
[315465646,1709056237905,-218.6495,0.00022589,2]
[315465647,1709056237914,-157.03,0.00022648,2]
[315465648,1709056237924,-557.01,0.00022679,3]
[315465649,1709056238192,-278.51,0.00022679,3]
[315465650,1709056238202,-835.53,0.00022679,3]
[315465651,1709056238211,-1070.12559395,0.00022687,2]
[315465652,1709056238221,-18112.9526,0.00022689,2]
[315465653,1709056238230,-61126.9796,0.00022689,2]
[315465654,1709056238240,-176.95511877,0.000227,2]
[315465655,1709056238249,-319.04,0.000227,2]
[315465656,1709056238258,-155.42920943,0.00022715,2]
[315465657,1709056238267,-155.23,0.0002274,2]
[315465658,1709056238277,-152.91066921,0.00022769,2]
[315465659,1709056238286,-402.02,0.00022857,2]
[315465660,1709056238299,-2373.9782,0.00022899,2]
[315465661,1709056238308,-1045.29074501,0.000229,2]
[315465662,1709056238318,-151.26762989,0.000229,2]
[315465663,1709056238328,-198.6953604,0.000229,2]
[315465664,1709056238339,-296.1059,0.000229,2]
[315465665,1709056238348,-155.42920943,0.000229,2]
[315465666,1709056238358,-862.31817254,0.000229,2]
[315465667,1709056238367,-278.26224416,0.000229,2]
[315465668,1709056238377,-11654.20548331,0.0002298,2]
[315465669,1709056238386,-4628.38137956,0.0002298,2]
[315465670,1709056238395,-9869.1615742,0.0002298,2]
[315465671,1709056238404,-1805.10524558,0.0002298,2]
[315465672,1709056238413,-1045.29074499,0.00022991,2]
[315465673,1709056238422,-259.07300225,0.00022998,2]
[315465674,1709056238431,-155.0,0.00022998,2]
[315465675,1709056238440,-465.83846625,0.00022998,2]
[315465676,1709056238449,-16806.67153865,0.00022999,2]
[315465677,1709056238458,-642.22672279,0.00022999,2]
[315465678,1709056238467,-1281.30433515,0.00022999,2]
[315465679,1709056238476,-111274.45470169,0.00023,4]
[315465680,1709056238488,-742.98362835,0.00023,4]
[315465681,1709056238499,-1414.08960256,0.00023,4]
[315465682,1709056238554,-8194.12031616,0.00023,4]
[315465683,1709056238586,-770.52964446,0.00023,4]
[315465684,1709056238598,-410.47929816,0.00023,4]
[315465685,1709056238609,-1542.21,0.00023,4]
[315465686,1709056238638,2665.32709917,0.0002,3]
[315465687,1709056238651,-13933.33485193,0.00023,4]
[315465688,1709056238661,-207.91163709,0.00023,2]
[315465689,1709056238670,-26661.5871015,0.00023,2]
[315465690,1709056238682,-283.31305,0.00023,2]
[315465691,1709056238694,-2618.15996492,0.00023,2]
[315465692,1709056238705,-1184.84828064,0.00023,2]
[315465693,1709056238717,-593.88979868,0.00023,2]
[315465694,1709056238745,2665.32709917,0.0002,3]
[315465695,1709056238794,2665.32709917,0.0002,3]
[315465696,1709056238832,2665.32609917,0.0002,3]
[315465714,1709056240986,-1262.56683,0.00023,2]
[315465715,1709056241001,-1530.4,0.00023,2]
[315465716,1709056241015,-476.56979241,0.00023,2]
[315465717,1709056241039,-12.04266763,0.00023,2]
[315465718,1709056241055,-320.82697064,0.00023,2]
[315465719,1709056241067,-1011007.71944358,0.00023,2]
[315465720,1709056241078,-1213.86176693,0.00023,2]
[315465721,1709056241114,-6578.60973398,0.00023,2]
[315465722,1709056241125,-1394.80352375,0.00023,2]
[315465723,1709056241137,-439.10667098,0.00023,2]
[315465724,1709056241189,-2576.61058529,0.00023,2]
[315465725,1709056241243,-1451.35184805,0.00023,2]
[315465726,1709056241255,-573.11747831,0.00023,2]
[315465727,1709056241266,-315.3969482,0.00023,2]
[315465728,1709056241278,-1444.161015,0.00023,2]
[315465884,1709056242701,-5133.47888485,0.00023,2]
[315465886,1709056242713,-1419.575,0.00023,2]
[315465889,1709056242763,-656216.57750509,0.00023,2]
[315465907,1709056242937,-513.18500005,0.00023,2]
[315465910,1709056242949,-58009.35198861,0.00023,2]
[315465912,1709056242960,-5951.4458347,0.00023,2]
[315465914,1709056242972,-4379.1269457,0.00023,2]
[315465916,1709056242984,-10439.20242373,0.00023,2]
[315465919,1709056242998,-1807.04167276,0.00023,2]
[315465921,1709056243011,-3246.87744809,0.00023,2]
[315465923,1709056243026,-2766.65856,0.00023,2]
[315465925,1709056243043,-346.38069345,0.00023,2]
[315465929,1709056243071,-3346.19602351,0.00023,2]
[315465931,1709056243082,-20618.7244158,0.00023,2]
[315466006,1709056245767,-676.279472,0.00023,2]
[315466019,1709056245948,-957.43816921,0.00023,2]
[315466020,1709056245960,-643.41223472,0.00023,2]
[315466021,1709056245974,-78174.07275424,0.00023,2]
[315466022,1709056246022,-576.01551984,0.00023,2]
[315466023,1709056246036,-5600.0,0.00023,2]
[315466026,1709056247525,313149.40910073,0.0001933,2]
[315466027,1709056318424,129684.61156773,0.0001933,2]
[315466029,1709056458669,151.0,0.00029432,120]
[315466037,1709056912312,151.0,0.0002952,120]
[315466039,1709057204157,-201.03205986,0.00018917,2]
[315466040,1709057358803,151.0,0.00029549,120]
[315466041,1709057360101,-345.19751709,0.00018917,2]
[315466042,1709057360122,-556.79,0.00018918,2]
[315466043,1709057360142,-699.15597181,0.00019196,2]
[315466044,1709057360167,-500.0,0.000192,2]
[315466045,1709057360192,-158.49874393,0.00019228,2]
[315466046,1709057360213,-5730.60966983,0.0001932,2]
[315466056,1709057435535,-612.73886448,0.0001932,2]
[315466057,1709057435547,-2765.36213272,0.0001932,2]
[315466058,1709057435709,-12068.9678838,0.0001932,2]
[315466059,1709057435719,-299.30428222,0.00019328,2]
[315466060,1709057435729,-382.49168769,0.00019328,2]
[315466061,1709057435739,-383.95281975,0.00019328,2]
[315466062,1709057435748,-1213.52145873,0.00019328,2]
[315466063,1709057435757,-5869.00632287,0.0001933,2]
[315466093,1709057437818,-18488.86213843,0.0001933,2]
[315466094,1709057437876,-934.57515124,0.0001933,2]
[315466095,1709057437938,-3991.75983,0.0001933,2]
[315466096,1709057437950,-2525.89220311,0.0001933,2]
[315466105,1709057438289,-30809.01006644,0.0001933,2]
[315466120,1709057440555,-546.22957695,0.00019319,2]
[315466121,1709057440565,-1155.94474705,0.0001933,2]
[315466159,1709057443076,-171247.91841168,0.0001933,2]
[315466160,1709057443136,-424.99851838,0.0001933,2]
[315466161,1709057443274,-322.48780221,0.0001933,2]
[315466169,1709057445852,-17146.4274,0.0001933,2]
[315466170,1709057445916,-571.87130746,0.0001933,2]
[315466171,1709057446205,-169989.65280456,0.0001933,2]
[315466172,1709057446217,-1839.35276893,0.0001933,2]
[315466173,1709057446229,-6674.64723107,0.0001933,2]
[315466175,1709057742793,151.0,0.00029812,120]
[315466185,1709058060019,255.42,0.00024,50]
[315466242,1709058163203,151.0,0.00029608,120]
[315466245,1709058551148,-284.58560959,0.00017326,2]
[315466246,1709058551171,-207.0,0.00017327,2]
[315466247,1709058551192,-529.57789947,0.00018782,2]
[315466249,1709058587175,1165.24073,0.0002,7]
[315466251,1709058632233,-155.0,0.00018954,2]
[315466252,1709058632242,-555.06,0.00018955,2]
[315466253,1709058632251,-946.39781425,0.00019118,2]
[315466254,1709058632260,-290.0,0.00019124,2]
[315466255,1709058632270,-10553.04375159,0.00019125,2]
[315466256,1709058632279,-155.0,0.00019226,2]
[315466257,1709058632288,-158.49874393,0.00019428,2]
[315466258,1709058632297,-579.05,0.00019492,2]
[315466259,1709058632307,-499.99,0.00019492,2]
[315466260,1709058632316,-4953.98260352,0.0002,2]
[315466261,1709058632326,-1737.16,0.0002,2]
[315466262,1709058632335,-150.99,0.0002,2]
[315466263,1709058632344,-207.0,0.00020172,5]
[315466264,1709058632354,-1857.21,0.00020453,2]
[315466265,1709058632363,-9999.99,0.00020453,2]
[315466266,1709058632373,-340.0,0.00020453,2]
[315466267,1709058632382,-158.49874393,0.00020585,2]
[315466268,1709058632394,-250.0,0.00020721,2]
[315466269,1709058632403,-413.85,0.00020757,2]
[315466270,1709058632413,-2000.0,0.00020831,2]
[315466271,1709058632422,-250.0,0.00020835,2]
[315466272,1709058632431,-159.45,0.00020941,2]
[315466273,1709058632440,-248.8996,0.00021041,2]
[315466274,1709058632450,-1128.07,0.00021041,2]
[315466276,1709058632459,-260.77723429,0.00021088,2]
[315466278,1709058632468,-1000.0,0.00021106,2]
[315466280,1709058632478,-284.58560959,0.00021217,2]
[315466282,1709058632487,-555.06,0.00021218,2]
[315466284,1709058632496,-265.0,0.00021237,2]
[315466286,1709058632506,-154.0,0.00021237,2]
[315466288,1709058632515,-424.18,0.00021269,2]
[315466290,1709058632524,-150.0,0.00021269,2]
[315466292,1709058632533,-150.0,0.00021269,2]
[315466293,1709058632543,-159.45,0.00021304,2]
[315466294,1709058632552,-835.73450788,0.00021486,2]
[315466295,1709058632561,-159.45,0.00021668,2]
[315466296,1709058632570,-158.49874393,0.00021743,2]
[315466297,1709058632580,-8000.0,0.000219,2]
[315466298,1709058632589,-154.25,0.00021918,2]
[315466299,1709058632599,-157.93,0.00021918,2]
[315466300,1709058632608,-157.72,0.00021918,2]
[315466301,1709058632618,-158.86,0.00021918,2]
[315466302,1709058632627,-1750.0,0.00022,3]
[315466303,1709058632636,-166.78,0.00022001,2]
[315466304,1709058632647,-159.45,0.00022032,2]
[315466305,1709058632655,-1038.0,0.00022093,2]
[315466306,1709058632664,-362.56568131,0.00022104,3]
[315466307,1709058632673,-181.28284065,0.00022104,3]
[315466308,1709058632682,-218.00044023,0.00022104,3]
[315466309,1709058632691,-317.26968825,0.00022104,3]
[315466310,1709058632700,-258.72006748,0.00022104,3]
[315466311,1709058632710,-197.49852026,0.00022104,3]
[315466312,1709058632719,-1000.0,0.00022104,3]
[315466313,1709058632729,-790.25186962,0.00022104,3]
[315466314,1709058632738,-413.39,0.00022105,2]
[315466315,1709058632748,-6818.0,0.000222,2]
[315466316,1709058632758,-2423.0,0.000222,2]
[315466317,1709058632767,-413.51,0.00022301,2]
[315466318,1709058632777,-689.34,0.00022301,2]
[315466319,1709058632786,-265.0,0.00022333,2]
[315466320,1709058632797,-154.0,0.00022333,2]
[315466321,1709058632806,-413.85,0.00022401,2]
[315466322,1709058632816,-258.43377631,0.00022538,2]
[315466323,1709058632826,-1997.0,0.000226,2]
[315466324,1709058632836,-22448.40131117,0.00022633,6]
[315466325,1709058632846,-2280.51820561,0.00022634,6]
[315466326,1709058632856,-201.42213794,0.00022637,6]
[315466327,1709058632865,-190.46268011,0.0002264,6]
[315466328,1709058632874,-2280.51820561,0.00022641,6]
[315466329,1709058632883,-197.50308786,0.00022642,6]
[315466330,1709058632893,-335.07574088,0.00022643,6]
[315466331,1709058632902,-167.96572653,0.00022645,6]
[315466332,1709058632911,-693.00000009,0.00022646,6]
[315466333,1709058632921,-157.72,0.00022648,2]
[315466334,1709058632930,-201.42213794,0.0002265,6]
[315466335,1709058632939,-2280.51820561,0.0002265,6]
[315466336,1709058632951,-167.96572653,0.00022651,6]
[315466337,1709058632960,-22448.40131117,0.00022653,6]
[315466338,1709058632970,-167.96572653,0.00022655,6]
[315466339,1709058632979,-190.46268011,0.00022657,6]
[315466340,1709058632989,-17237.49080058,0.00022657,6]
[315466341,1709058632998,-22448.40131117,0.00022658,6]
[315466342,1709058633007,-3002.93507533,0.00022659,6]
[315466343,1709058633017,-22448.40131117,0.00022659,6]
[315466344,1709058633026,-693.00000009,0.00022662,6]
[315466345,1709058633036,-17237.49080058,0.00022664,6]
[315466346,1709058633045,-201.42213794,0.00022667,6]
[315466347,1709058633055,-190.46268011,0.00022668,6]
[315466348,1709058633064,-197.50308786,0.0002267,6]
[315466349,1709058633073,-335.07574088,0.00022675,6]
[315466350,1709058633083,-197.50308786,0.00022676,6]
[315466351,1709058633096,-201.42213794,0.00022678,6]
[315466352,1709058633105,-17237.49080058,0.00022679,6]
[315466353,1709058633114,-498.4248,0.0002268,2]
[315466354,1709058633123,-3002.93507533,0.0002268,6]
[315466355,1709058633132,-190.46268011,0.00022681,6]
[315466356,1709058633143,-3002.93507533,0.00022684,6]
[315466357,1709058633152,-17237.49080058,0.00022685,6]
[315466358,1709058633162,-693.00000009,0.00022686,6]
[315466359,1709058633171,-197.50308786,0.00022687,6]
[315466360,1709058633180,-693.00000009,0.00022687,6]
[315466361,1709058633190,-3002.93507533,0.00022688,6]
[315466362,1709058633200,-197.32831281,0.00022688,6]
[315466363,1709058633209,-197.32831281,0.00022691,6]
[315466364,1709058633219,-2280.51820561,0.00022694,6]
[315466365,1709058633228,-335.07574088,0.00022694,6]
[315466366,1709058633238,-335.07574088,0.00022694,6]
[315466367,1709058633247,-197.32831281,0.00022695,6]
[315466368,1709058633257,-197.32831281,0.00022696,6]
[315466369,1709058633266,-167.96572653,0.00022699,6]
[315466370,1709058633276,-7244.12953125,0.00022767,2]
[315466371,1709058633285,-152.91066922,0.00022769,2]
[315466372,1709058633295,-835.73450789,0.0002278,2]
[315466373,1709058633303,-8039.9102,0.0002278,2]
[315466374,1709058633313,-1256.03,0.0002278,2]
[315466375,1709058633323,-500.0,0.0002278,2]
[315466376,1709058633332,-96031.182,0.0002278,2]
[315466377,1709058633342,-176.63,0.00022796,2]
[315466378,1709058633351,-2726.6063,0.000228,2]
[315466379,1709058633361,-800.0,0.00022815,2]
[315466380,1709058633370,-200.0,0.00022815,2]
[315466381,1709058633380,-500.0,0.00022815,2]
[315466382,1709058633391,-200.0,0.00022816,2]
[315466383,1709058633401,-200.0,0.00022816,2]
[315466384,1709058633415,-800.0,0.00022816,2]
[315466385,1709058633428,-800.0,0.00022816,2]
[315466386,1709058633442,-200.0,0.00022816,2]
[315466387,1709058633456,-200.0,0.00022816,2]
[315466388,1709058633469,-200.0,0.00022816,2]
[315466389,1709058633480,-500.0,0.00022816,2]
[315466390,1709058633493,-200.0,0.00022816,2]
[315466391,1709058633507,-881.92,0.0002287,3]
[315466392,1709058633519,-789.12,0.0002287,3]
[315466393,1709058633532,-66918.47749027,0.0002288,2]
[315466394,1709058633578,-646.74,0.00018796,2]
[315466400,1709058638029,-492.89319899,0.00018796,2]
[315466401,1709058638040,-513.62820241,0.00019009,2]
[315466402,1709058638101,-626.00499658,0.00019009,2]
[315466403,1709058638112,-1139.63319899,0.0001951,2]
[315466404,1709058638124,-8965.41022335,0.0002288,2]
[315466405,1709058638141,-7519.5468354,0.0002288,2]
[315466406,1709058638220,-16596.56545098,0.0002288,2]
[315466407,1709058638232,-1000.0,0.00022885,2]
[315466408,1709058638244,-1000.0,0.00022885,2]
[315466409,1709058638256,-1000.0,0.00022885,2]
[315466410,1709058638268,-1000.0,0.00022885,2]
[315466411,1709058638279,-1000.0,0.00022885,2]
[315466412,1709058638290,-1000.0,0.00022885,2]
[315466413,1709058638302,-1000.0,0.00022885,2]
[315466414,1709058638314,-1000.0,0.00022885,2]
[315466415,1709058638326,-1000.0,0.00022885,2]
[315466416,1709058638337,-1000.0,0.00022885,2]
[315466418,1709058638348,-238.9943,0.00022885,2]
[315466420,1709058638359,-413.13,0.00022898,2]
[315466422,1709058638368,-150.0,0.00022898,2]
[315466424,1709058638378,-21801.51648086,0.000229,4]
[315466426,1709058638388,-5000.0,0.000229,2]
[315466428,1709058638398,-158.49874393,0.000229,2]
[315466430,1709058638407,-4918.74591026,0.000229,2]
[315466432,1709058638417,-200.81154741,0.000229,2]
[315466434,1709058638427,-8949.45,0.000229,2]
[315466436,1709058638437,-187.29524356,0.000229,2]
[315466438,1709058638447,-151.30006615,0.000229,2]
[315466440,1709058638462,-199.72388188,0.000229,2]
[315466442,1709058638483,-548.68002749,0.000229,2]
[315466444,1709058638505,-411.68,0.000229,2]
[315466446,1709058638525,-151.30006612,0.00022933,2]
[315466471,1709058638798,-151.30006612,0.00022966,2]
[315466474,1709058638822,-211.80498336,0.0002298,2]
[315466476,1709058638834,-50000.0,0.0002298,2]
[315466478,1709058638844,-7682.11595359,0.0002298,2]
[315466480,1709058638853,-36068.66470184,0.0002298,2]
[315466481,1709058638863,-15783.72578304,0.0002298,2]
[315466483,1709058638872,-3242.33837786,0.0002298,2]
[315466485,1709058638882,-6422.07998451,0.0002298,2]
[315466487,1709058638893,-5229.68101085,0.0002298,2]
[315466489,1709058638903,-185.89916816,0.0002299,2]
[315466491,1709058638912,-4918.74591018,0.00022991,2]
[315466492,1709058638922,-199.21278174,0.00022998,2]
[315466494,1709058638932,-4718.00344785,0.00022999,2]
[315466496,1709058638941,-2323.38909486,0.00022999,2]
[315466498,1709058638950,-1006.4337,0.00022999,2]
[315466500,1709058638959,-151.30006612,0.00022999,2]
[315466502,1709058638968,-123004.0199076,0.00023,4]
[315466503,1709058638977,-464046.14665787,0.00023,2]
[315466504,1709058639003,-4600.55820381,0.00023,2]
[315466505,1709058639016,-37931.37989335,0.00023,2]
[315466508,1709058641517,-250.0,0.00022035,2]
[315466509,1709058641527,-33.47580143,0.00023,2]
[315466510,1709058641539,-302.28699035,0.00023,2]
[315466511,1709058641577,-7852.77730498,0.00023,2]
[315466513,1709058641588,-3041.24575952,0.00023,2]
[315466515,1709058641599,-2852.63579746,0.00023,2]
[315466600,1709058643162,-48971.02583574,0.00023,2]
[315466601,1709058643175,-142970.31505327,0.00023,2]
[315466602,1709058643187,-649.32677391,0.00023,2]
[315466603,1709058643225,-998810.29888549,0.00023,2]
[315466604,1709058643290,-2041.92137953,0.00023,2]
[315466605,1709058643303,-32251.45550409,0.00023,2]
[315466606,1709058643314,-27781.35262928,0.00023,2]
[315466823,1709058646253,-242.78347196,0.00022999,2]
[315466824,1709058646263,-33.32587324,0.00023,2]
[315466825,1709058646427,-14227.41312544,0.00023,2]
[315466828,1709058876672,211.93046217,0.00021,7]
[315466829,1709058910460,2261.10774495,0.0002,10]
[315466830,1709059095316,200.0,0.000249,120]
[315466831,1709059146831,200.0,0.00026,120]
[315466832,1709059162889,211.93046217,0.000222,14]
[315466833,1709059201507,226.502299,0.000222,14]
[315466834,1709059237519,200.0,0.00029,120]
[315466835,1709059399215,-946.39781425,0.00019416,2]
[315466836,1709059399241,-284.58560959,0.00019417,2]
[315466837,1709059399265,-873.41871355,0.00019424,2]
[315466838,1709059399290,-520.77,0.00019427,2]
[315466839,1709059399317,-162.23074742,0.00019899,2]
[315466840,1709059399341,-250.3071,0.000199,2]
[315466841,1709059399366,-150.0,0.00019999,2]
[315466842,1709059399404,-74912.29001519,0.0002,2]
[315466843,1709059645235,-494.73,0.00018834,2]
[315466844,1709059645255,-946.39781425,0.00019898,2]
[315466845,1709059645277,-284.58560959,0.00019899,2]
[315466846,1709059645298,-162.31346084,0.000199,2]
[315466847,1709059645320,-609.86418191,0.000199,2]
[315466848,1709059645339,-150.0,0.00019999,2]
[315466849,1709059645359,-300.0,0.00019999,2]
[315466850,1709059645378,-300.0,0.00019999,2]
[315466851,1709059645399,-54799.88705815,0.0002,2]
[315466852,1709059648128,-26752.46993881,0.0002,2]
[315466854,1709059825551,183.88912443,0.000266,41]
[315466855,1709059832238,-207.0,0.00019017,2]
[315466856,1709059832248,-300.0,0.00019999,2]
[315466857,1709059832257,-1774.78642584,0.0002,2]
[315466858,1709059832269,-5092.04105041,0.0002,2]
[315466859,1709059832416,-5636.0,0.0002,2]
[315466860,1709059832429,-7736.41946076,0.0002,2]
[315466882,1709059838759,-17073.46572963,0.0002,2]
[315466883,1709059838769,-2159.05225505,0.0002,10]
[315466884,1709059838779,-2498.24,0.0002,2]
[315466885,1709059838789,-2582.81,0.0002,2]
[315466886,1709059838798,-2579.4,0.0002,2]
[315466887,1709059838808,-946.39781425,0.00020398,2]
[315466888,1709059838817,-284.58560959,0.00020399,2]
[315466889,1709059838826,-162.31346084,0.000204,2]
[315466890,1709059838836,-250.0,0.00020685,2]
[315466891,1709059838845,-250.0,0.00020773,2]
[315466892,1709059838855,-150.0,0.00020777,2]
[315466893,1709059838864,-222.5,0.00020777,2]
[315466894,1709059838873,-178.88,0.00020792,2]
[315466895,1709059838883,-499.99,0.00020792,2]
[315466896,1709059838892,-2671.95,0.00020792,2]
[315466897,1709059838901,-2000.0,0.00020832,2]
[315466898,1709059838910,-160.23,0.00020853,2]
[315466899,1709059838920,-9999.99,0.00020853,2]
[315466900,1709059838929,-2717.94,0.00020853,2]
[315466901,1709059838939,-162.31346084,0.000209,2]
[315466902,1709059838948,-13046.18,0.00020989,2]
[315466903,1709059838958,-150.99,0.00021,2]
[315466904,1709059838967,-275.9,0.00021075,2]
[315466905,1709059838976,-494.73,0.00021097,2]
[315466906,1709059838985,-162.31346084,0.000214,2]
[315466907,1709059838994,-158.97,0.0002152,2]
[315466908,1709059839003,-248.0,0.00021537,2]
[315466909,1709059839012,-980.85297232,0.000219,2]
[315466910,1709059839021,-162.31346084,0.000219,2]
[315466911,1709059839031,-8000.0,0.000219,2]
[315466912,1709059839040,-158.86,0.00021918,2]
[315466913,1709059839049,-157.03,0.00021918,2]
[315466914,1709059839058,-9912.4528,0.00021973,2]
[315466915,1709059839067,-1750.0,0.00022,3]
[315466916,1709059839077,-157.49,0.00022027,2]
[315466917,1709059839086,-1000.0,0.00022074,2]
[315466918,1709059839096,-262.38133288,0.00022102,3]
[315466919,1709059839106,-270.73387506,0.00022102,3]
[315466920,1709059839116,-560.16442128,0.00022102,3]
[315466921,1709059839125,-737.61866712,0.00022103,3]
[315466922,1709059839138,-207.0,0.0002217,6]
[315466923,1709059839149,-16031.40701041,0.00022191,2]
[315466924,1709059841000,-23436.11048959,0.00022191,2]
[315466925,1709059841010,-8573.0,0.000222,2]
[315466926,1709059841019,-398.05,0.00022237,2]
[315466927,1709059841028,-164.74,0.00022245,2]